Cogmind - Beta 15 @@@ ROGUE MODE // 2025.09.28 @ 17:08:43 Player: Runagate Result: Destroyed by Cetus Guard with Advanced KE Penetrator Performance ------------- Evolutions (4) 2000 Regions Visited (7) 1400 Robots Destroyed (130) 650 Value Destroyed (4353) 4353 Prototype IDs (10) 200 Alien Tech Used (0) 0 Bonus (306) 306 TOTAL SCORE: 8909 Bonus ------- Follower Combat Kills 306 Cogmind --------- Core Integrity 0/850 Matter 222/300 Energy 100/100 System Corruption 4% Temperature Warm (144) Movement Walking (220) Location -6/Cetus Parts ------- > --- POWER (1) -------- (None) > --- PROPULSION (4) --- Multireflex Exoskeleton > --- UTILITY (7) ------ Large Storage Unit Advanced Melee Analysis Suite Core Analyzer Core Analyzer Core Analyzer > --- WEAPON (3) ------- Heavy Machine Gun Power Maul > --- INVENTORY (15) --- Improved Medium Treads Hardlight Generator Drone Bay (2/2) EMP Blaster Datajack Peak State ------------ > --- POWER ------------ Cold Fusion Reactor > --- PROPULSION ------- Multireflex Exoskeleton Multireflex Exoskeleton > --- UTILITY ---------- Large Storage Unit Advanced Sensor Array Improved Melee Analysis Suite Core Analyzer Armor Integrity Analyzer Microactuators Improved Reaction Control System > --- WEAPON ----------- Katana Katana Katana > --- INVENTORY -------- Deuterium Engine Multireflex Exoskeleton Multireflex Exoskeleton Improved Melee Analysis Suite Target Analyzer Core Analyzer Hardlight Generator Improved Shield Generator Heavy Machine Gun EMP Blaster Power Maul Katana Katana [Rating: 72] Favorites ----------- Power Deuterium Engine Engine Deuterium Engine Power Core Micro Nuclear Core Reactor Cold Fusion Reactor Propulsion Aluminum Leg Treads Improved Medium Treads Leg Aluminum Leg Wheel Wheel Utility Core Analyzer Device Microactuators Storage Large Storage Unit Processor Core Analyzer Hackware Hacking Suite Protection Light Armor Plating Weapon Katana Energy Gun Spread Laser Ballistic Gun Light Assault Rifle Launcher Mini Grenade Launcher Impact Weapon Power Maul Slashing Weapon Katana Build | -11 -10 -9 -8 -7 -6 -6 -6 ------- Run | Yrd Mat Mat Mat Fac Fac Ext Cet Slots Evolved 8 | . . 2 2 2 2 . . Power . | . . . . . . . . Propulsion 2 | . . 2 . . . . . Utility 5 | . . . 1 2 2 . . Weapon 1 | . . . 1 . . . . Parts Attached 140 | 7 19 15 21 26 25 26 1 Power 18 | 1 2 2 2 4 2 5 . Engine 12 | 1 2 2 2 1 . 4 . Core 5 | . . . . 3 1 1 . Reactor 1 | . . . . . 1 . . Propulsion 39 | 2 5 5 4 5 8 10 . Treads 1 | . . . . . . 1 . Leg 36 | 2 5 5 4 3 8 9 . Wheel 2 | . . . . 2 . . . Hover . | . . . . . . . . Flight . | . . . . . . . . Utility 49 | 2 4 6 5 11 12 9 . Device 20 | 1 3 2 1 3 8 2 . Storage 6 | 1 1 2 1 1 . . . Processor 14 | . . . . 4 4 6 . Hackware 1 | . . . . 1 . . . Protection 8 | . . 2 3 2 . 1 . Artifact . | . . . . . . . . Weapon 34 | 2 8 2 10 6 3 2 1 Energy Gun 5 | . 3 1 . 1 . . . Energy Cannon . | . . . . . . . . Ballistic Gun 18 | 2 5 1 8 1 . . 1 Ballistic Cannon . | . . . . . . . . Launcher 2 | . . . 2 . . . . Special Weapon . | . . . . . . . . Impact Weapon 2 | . . . . . . 2 . Slashing Weapon 7 | . . . . 4 3 . . Piercing Weapon . | . . . . . . . . Special Melee Weapon . | . . . . . . . . Unidentified Prototypes 3 | . . . 1 . 2 . . Parts Lost 41 | . 1 1 . 9 6 18 6 Power 4 | . . . . 1 . 2 1 Propulsion 15 | . . . . 5 1 7 2 Utility 15 | . 1 1 . 2 3 6 2 Weapon 7 | . . . . 1 2 3 1 Highest Loss Streak 6 | . 1 1 . 2 4 6 6 To Critical Strikes . | . . . . . . . . Average Backups 12 | 1 6 11 14 14 13 10 5 Power 1 | . 1 2 2 1 1 . . Propulsion 1 | . . . 2 2 1 2 1 Utility 4 | . 3 4 6 6 5 3 2 Weapon 4 | . 1 4 4 4 5 3 1 Tool/Special . | . . . . . . . . Unused Backups 16 | . . 2 3 5 3 1 2 Power 1 | . . 1 . . . . . Propulsion 3 | . . . . . 2 1 . Utility 8 | . . 1 2 3 1 . 1 Weapon 3 | . . . 1 2 . . . Tool/Special 1 | . . . . . . . 1 Average Slot Usage (%) 95 | . 99 99 99 97 93 85 80 Engine 5 | . 14 11 9 2 . 3 4 Core 1 | . . . . 4 1 . . Reactor 1 | . . . . . 4 2 . Leg 26 | . 28 43 35 27 19 16 16 Device 9 | . 13 6 9 7 17 5 . Storage 8 | . 14 11 9 7 6 6 6 Processor 12 | . . . . 11 19 30 36 Hackware 2 | . . . . 6 1 . . Protection 2 | . . 4 8 2 . . . Energy Gun 4 | . 6 11 11 3 . . . Ballistic Gun 6 | . 21 11 14 3 . . 3 Impact Weapon 1 | . . . . . . 4 12 Slashing Weapon 9 | . . . . 15 19 14 . Peak Build Rating 72 | 7 8 17 32 44 72 71 61 Average Rating 39 | 5 7 13 25 40 60 61 54 On Entrance 28 | . 7 8 17 31 37 71 57 Naked Turns . | . . . . . . . . Heaviest Build 50 | 14 18 38 44 47 47 50 40 Greatest Support 85 | 20 20 40 52 65 72 85 71 Greatest Overweight (x) 3 | . . . 1 3 2 2 . Average Overweight (x) . | . . . . . . . . Largest Inventory Capacity 20 | 8 10 20 15 15 15 15 15 Average Capacity 14 | 7 8 15 15 15 15 15 15 Most Carried 15 | 2 10 15 15 15 15 15 6 Average Carried 12 | 1 6 11 14 14 14 11 5 Final Capacity 15 | 8 10 15 15 15 15 15 15 Final Carried 15 | 2 10 15 15 15 14 6 5 Class Distribution -------------------- 32% | Gladiator 18% | Scavenger-Gladiator 16% | Mutant 14% | Scavenger-Tank 11% | Scavenger-Mutant 5% | Gunner Dominant Class ---------------- Mutant | -10/Materials Scavenger-Mutant | -9/Materials Scavenger-Tank | -8/Materials Gladiator | -7/Factory Gladiator | -6/Factory Gladiator | -6/Extension Gladiator | -6/Cetus Resources | -11 -10 -9 -8 -7 -6 -6 -6 ----------- Run | Yrd Mat Mat Mat Fac Fac Ext Cet Matter Collected 2771 | 322 517 216 707 462 281 266 . Remotely . | . . . . . . . . Salvage Created 5622 | 150 576 331 973 1090 744 1758 . Parts 298 | 11 41 23 54 75 29 65 . Haulers Intercepted 2 | . . . 2 . . . . Recyclers Shooed 4 | . 2 . . 1 1 . . Parts Field Recycled . | . . . . . . . . Retrieved Matter . | . . . . . . . . Parts Self-Destructed . | . . . . . . . . Prevented . | . . . . . . . . Kills | -11 -10 -9 -8 -7 -6 -6 -6 ------- Run | Yrd Mat Mat Mat Fac Fac Ext Cet Combat Hostiles Destroyed 93 | . 16 10 20 17 9 21 . Melee 41 | . . . . 15 9 17 . Guns 49 | . 16 10 20 2 . 1 . Classes Destroyed 15 | 2 4 1 3 2 . 3 . Worker 4 | . 2 1 . 1 . . . Builder 6 | . . . 4 1 . 1 . Tunneler 8 | 4 . . 1 2 1 . . Hauler 2 | . . . 2 . . . . Recycler 9 | 1 1 . 1 3 1 2 . Operator 1 | . . . . . . 1 . Watcher 7 | . 1 . 2 2 2 . . Swarmer 20 | . 6 3 7 4 . . . Grunt 36 | . 10 3 6 4 4 9 . Brawler 1 | . . . . . . 1 . Duelist 1 | . . . . 1 . . . Sentry 18 | . . 4 6 2 1 5 . Hunter 9 | . . . 1 2 2 4 . Programmer 6 | . . . . 4 2 . . Behemoth 2 | . . . . . . 2 . Best Kill Streak 7 | 5 7 3 4 2 2 5 . Combat Bots Only 5 | . 5 3 4 2 2 5 . Max Kills in Single Turn 2 | 1 2 1 2 1 1 1 . Gunslinging . | . . . . . . . . Exploded . | . . . . . . . . Melee 1 | . . . . 1 1 1 . Uniques/NPCs Destroyed . | . . . . . . . . Combat | -11 -10 -9 -8 -7 -6 -6 -6 -------- Run | Yrd Mat Mat Mat Fac Fac Ext Cet Hostile Shots Fired 809 | . 79 37 62 138 108 334 51 Missed 261 | . 18 12 27 48 31 104 21 Deflected 28 | . . . . . 6 22 . Hits 548 | . 61 25 35 90 77 230 30 Melee 7 | . . . . 5 . 2 . Projectile 541 | . 61 25 35 85 77 228 30 Critical Strikes 15 | . 1 . 1 2 1 4 6 Damage Taken 7792 | . 658 311 554 1246 1165 3016 842 Core 1141 | . 83 24 76 85 178 537 158 Absorbed by Shields 168 | . . . . . 48 120 . Regen/Repaired (Parts) 26 | . . . 26 . . . . Core Remaining (%) 86 | 100 66 94 86 87 . . . Volleys Fired 197 | 13 68 24 60 15 . . 17 Largest 3 | 2 2 2 3 3 . . 1 Hottest 133 | 40 85 88 133 115 . . 30 Shots Fired 422 | 26 133 47 178 21 . . 17 Gun 417 | 26 133 47 173 21 . . 17 Cannon . | . . . . . . . . Launcher 5 | . . . 5 . . . . Special . | . . . . . . . . Kinetic 290 | 26 109 24 108 6 . . 17 Thermal 127 | . 24 23 65 15 . . . Explosive 1 | . . . 1 . . . . Electromagnetic 4 | . . . 4 . . . . Robot Hit Streak 19 | 14 9 19 13 16 . . 6 Robot Miss Streak 8 | 2 7 6 8 3 . . 4 Penetration Max . | . . . . . . . . Secondary Targets 9 | . 3 2 4 . . . . Max Gunslinging Chain 1 | . 1 1 1 . . . . Shots Hit Robots 444 | 18 84 36 110 68 39 84 5 Core Hits 294 | 8 36 43 96 54 18 37 2 Critical Kills 1 | . . . . . . 1 . Critical Parts Destroyed 5 | . . . 1 . . 4 . Critical Strikes 24 | . . . 1 1 7 15 . Destroy 1 | . . . 1 . . . . Smash 5 | . . . . . . 5 . Sever 18 | . . . . 1 7 10 . Melee Attacks 248 | . . . . 79 57 112 . Impact 24 | . . . . . . 24 . Slashing 224 | . . . . 79 57 88 . Piercing . | . . . . . . . . Sneak Attacks 20 | . . . . 9 3 8 . Combat Hostiles 3 | . . . . . . 3 . Follow-up Attacks 40 | . . . . 13 8 19 . Martial Strikes 23 | . . . . . 4 19 . Damage Inflicted 10138 | 174 913 488 1845 2189 1373 3024 132 Guns 3757 | 170 895 488 1728 344 . . 132 Cannons . | . . . . . . . . Explosions 113 | . . . 113 . . . . Melee 6237 | . . . . 1845 1368 3024 . Ramming 31 | 4 18 . 4 . 5 . . Kinetic 2263 | 170 674 179 987 121 . . 132 Thermal 1494 | . 221 309 741 223 . . . Explosive 37 | . . . 37 . . . . Electromagnetic 76 | . . . 76 . . . . Impact 884 | . . . . . . 884 . Slashing 5353 | . . . . 1845 1368 2140 . Piercing . | . . . . . . . . Highest Corruption 4 | . . . . 2 3 4 4 Average Corruption 3 | . . . . 1 3 3 4 Corruption Purged 2 | . . . . 2 . . . Corruption Blocked . | . . . . . . . . Effects 73 | . . . . 8 19 42 4 Message Errors 15 | . . . . 1 4 10 . Matter Fused 11 | . . . . 3 3 5 . Heat Flow Errors 8 | . . . . 1 2 3 2 Energy Discharges 13 | . . . . 2 3 8 . Parts Rejected 1 | . . . . . . 1 . Parts Fused 3 | . . . . . 1 2 . Data Loss (minor) 16 | . . . . 1 5 9 1 Data Loss (major) 5 | . . . . . 1 3 1 Alerts 1 | . . . . . . 1 . Overload Shots . | . . . . . . . . Overflow Damage 582 | . . . . 167 90 325 . Projectiles . | . . . . . . . . Explosions . | . . . . . . . . Melee 582 | . . . . 167 90 325 . Knockbacks 1 | . . . . . . 1 . Impact 1 | . . . . . . 1 . Kinetic . | . . . . . . . . Secondary . | . . . . . . . . Self-Inflicted Damage . | . . . . . . . . Shots . | . . . . . . . . Rammed . | . . . . . . . . Targets Rammed 10 | 2 4 . 2 . 2 . . Kicked 10 | 2 4 . 2 . 2 . . Crushed . | . . . . . . . . Highest Temperature 227 | . 34 165 93 227 196 188 218 Average Temperature 42 | . 13 60 28 40 88 66 113 Received Heat Transfer 1620 | . 300 105 180 240 230 511 54 Siege Activations . | . . . . . . . . Martial Activations 9 | . . . . . 1 7 1 Total Turns 1386 | . . . . . 80 1209 97 Longest Duration 413 | . . . . . 80 403 413 Shielding Activations . | . . . . . . . . Robots Disrupted . | . . . . . . . . Combat Hostiles . | . . . . . . . . Robots Corrupted 3 | . . . . . . 3 . Combat Hostiles 3 | . . . . . . 3 . Parts Fried 5 | . . . . . . 5 . Impact Corruptions 9 | . . . . . . 9 . Robots Melted . | . . . . . . . . Combat Hostiles . | . . . . . . . . Parts Melted 1 | . . . 1 . . . . Heat Transferred 2254 | . 519 380 1065 290 . . . Parts Sabotaged . | . . . . . . . . Parts Stolen . | . . . . . . . . Parts Stripped . | . . . . . . . . Power Chain Reactions . | . . . . . . . . Alert | -11 -10 -9 -8 -7 -6 -6 -6 ------- Run | Yrd Mat Mat Mat Fac Fac Ext Cet Maximum Alert Level . | . . . . . . . . Low Security (%) 100 | 100 100 100 100 100 100 100 100 Level 1 . | . . . . . . . . Level 2 . | . . . . . . . . Level 3 . | . . . . . . . . Level 4 . | . . . . . . . . Level 5 . | . . . . . . . . High Security . | . . . . . . . . Max Security . | . . . . . . . . Peak Influence 195 | 10 132 127 195 164 65 104 35 Initial 76 | . . 50 39 76 65 6 . Average 47 | 1 41 41 73 69 12 35 2 Influence Increases 3103 | 25 462 320 611 623 272 732 58 Destroy 0b10 Robot/C 1960 | . 320 200 400 340 180 480 40 Destroy 0b10 Robot/NC 190 | 25 20 5 50 45 20 25 . Destroy Leader 488 | . 72 60 118 114 54 70 . Allied During Kill 19 | . . . . . . 7 12 Successful Hack 67 | . 5 24 10 14 . 14 . Disable Machine 60 | . 15 . 15 15 15 . . Destroy Structure 34 | . . 1 18 5 3 1 6 Lose Combat Pursuer 285 | . 30 30 . 90 . 135 . Influence Decreases 3103 | 25 342 345 538 657 393 744 59 Entered New Map 295 | . . 70 56 92 69 7 1 Time Decay 2408 | 25 332 275 482 485 266 533 10 Lost Part 304 | . 10 . . 80 58 156 . Lost Ally 96 | . . . . . . 48 48 Squads Dispatched 18 | . 3 . 2 5 5 3 . Investigation 6 | . 3 . . . 1 2 . Extermination 7 | . . . . 5 2 . . Reinforcement 4 | . . . 1 . 2 1 . Assault . | . . . . . . . . Garrison 1 | . . . 1 . . . . Intercept . | . . . . . . . . Searches Triggered . | . . . . . . . . Construction Impeded 1 | . . . 1 . . . . Haulers Reinforced . | . . . . . . . . Active Scanning Responses . | . . . . . . . . Cargo Convoy Interrupts . | . . . . . . . . Stealth | -11 -10 -9 -8 -7 -6 -6 -6 --------- Run | Yrd Mat Mat Mat Fac Fac Ext Cet Distress Signals 11 | . 4 1 . 2 . 3 1 Communications Jammed . | . . . . . . . . Distress Signals . | . . . . . . . . Times Spotted 151 | . 27 16 26 27 14 36 5 Peak Tracking Total 5 | . 4 5 5 3 3 4 5 Tactical Retreats 12 | . 1 1 . 4 . 6 . Traps | -11 -10 -9 -8 -7 -6 -6 -6 ------- Run | Yrd Mat Mat Mat Fac Fac Ext Cet Traps Triggered 13 | . 3 . 4 1 3 2 . Indirectly 2 | . . . 2 . . . . Trap Hack Attempts . | . . . . . . . . Triggered . | . . . . . . . . Disarmed . | . . . . . . . . Reprogrammed . | . . . . . . . . Reused . | . . . . . . . . Traps Extracted . | . . . . . . . . Installed . | . . . . . . . . Triggered . | . . . . . . . . Machines | -11 -10 -9 -8 -7 -6 -6 -6 ---------- Run | Yrd Mat Mat Mat Fac Fac Ext Cet Machines Disabled 4 | . 1 . 1 1 1 . . Max in Single Turn 1 | . 1 . 1 1 1 . . Garrison Access 1 | . . . 1 . . . . Machines Repaired . | . . . . . . . . Machines Dismantled . | . . . . . . . . Machines Sabotaged . | . . . . . . . . Overloaded Fab Kills . | . . . . . . . . Hacking | -11 -10 -9 -8 -7 -6 -6 -6 --------- Run | Yrd Mat Mat Mat Fac Fac Ext Cet Machines Accessed 22 | . 1 6 6 3 2 4 . Terminals 17 | . 1 6 3 2 1 4 . Fabricators . | . . . . . . . . Repair Stations 2 | . . . 1 . 1 . . Recycling Units . | . . . . . . . . Scanalyzers 1 | . . . 1 . . . . Garrison Access 2 | . . . 1 1 . . . Total Hacks 49 | . 3 14 16 4 4 8 . Successful 19 | . 1 6 6 2 1 3 . Failed 30 | . 2 8 10 2 3 5 . Catastrophic 4 | . . 2 . 1 . 1 . Database Lockouts . | . . . . . . . . Manual 11 | . 3 8 . . . . . Terminals 39 | . 3 14 8 3 3 8 . Fabricators . | . . . . . . . . Repair Stations 5 | . . . 4 . 1 . . Recycling Units . | . . . . . . . . Scanalyzers 3 | . . . 3 . . . . Garrison Access 2 | . . . 1 1 . . . Terminal Hacks 14 | . 1 6 1 2 1 3 . Robot Analysis 3 | . . 3 . . . . . Prototype ID Bank 3 | . 1 1 . 1 . . . Open Door 4 | . . . . . 1 3 . Registered Components 2 | . . 1 . 1 . . . Zone Layout 2 | . . 1 1 . . . . Fabricator Hacks . | . . . . . . . . Repair Station Hacks 2 | . . . 2 . . . . Scan Component 1 | . . . 1 . . . . Repair 1 | . . . 1 . . . . Recycling Unit Hacks . | . . . . . . . . Scanalyzer 2 | . . . 2 . . . . Insert Component 1 | . . . 1 . . . . Analyze 1 | . . . 1 . . . . Garrison Access Hacks 1 | . . . 1 . . . . Seal Access 1 | . . . 1 . . . . Unauthorized Hacks . | . . . . . . . . Terminals . | . . . . . . . . Fabricators . | . . . . . . . . Repair Stations . | . . . . . . . . Recycling Units . | . . . . . . . . Scanalyzers . | . . . . . . . . Garrison Access . | . . . . . . . . Data Cores Recovered . | . . . . . . . . Used . | . . . . . . . . Hacking Detections 16 | . 1 6 3 3 1 2 . Full Trace Events 1 | . . . . . . 1 . Feedback Events . | . . . . . . . . Feedback Blocked . | . . . . . . . . Robot Schematics Acquired . | . . . . . . . . Robots Built . | . . . . . . . . Authchips . | . . . . . . . . Time . | . . . . . . . . Total Robot Build Rating . | . . . . . . . . Part Schematics Acquired 1 | . . . 1 . . . . Parts Built . | . . . . . . . . Authchips . | . . . . . . . . Time . | . . . . . . . . Total Part Build Rating . | . . . . . . . . Parts Repaired 1 | . . . 1 . . . . Time 32 | . . . 32 . . . . Parts Recycled . | . . . . . . . . Recycled Matter . | . . . . . . . . Retrieved Matter . | . . . . . . . . Retrieved Components . | . . . . . . . . Parts Scanalyzed 1 | . . . 1 . . . . Part Schematics Acquired 1 | . . . 1 . . . . Parts Damaged . | . . . . . . . . Bothacking | -11 -10 -9 -8 -7 -6 -6 -6 ------------ Run | Yrd Mat Mat Mat Fac Fac Ext Cet Used RIF Installer . | . . . . . . . . Robots Hacked . | . . . . . . . . Non-combat . | . . . . . . . . Combat . | . . . . . . . . Robot Hacks Applied . | . . . . . . . . Relay Couplers Released . | . . . . . . . . Fabnet Peak Effective % . | . . . . . . . . Robots Rewired 4 | . . . . . . 4 . Allies Hacked . | . . . . . . . . Hacks Repelled . | . . . . . . . . Allies | -11 -10 -9 -8 -7 -6 -6 -6 -------- Run | Yrd Mat Mat Mat Fac Fac Ext Cet Total Allies 9 | . . . . . . 9 . Largest Group 4 | . . . . . . 4 4 Highest-Rated Group 128 | . . . . . . 128 128 Highest-Rated Ally 39 | . . . . . . 39 39 Total Orders 6 | . . . . . 6 . . ROAM 1 | . . . . . 1 . . EXPLORE 3 | . . . . . 3 . . RETURN 2 | . . . . . 2 . . Ally Attacks 35 | . . . . . . 22 13 Total Damage 682 | . . . . . . 486 196 Kills 6 | . . . . . . 4 2 Allies Corrupted . | . . . . . . . . Allies Melted . | . . . . . . . . Intel | -11 -10 -9 -8 -7 -6 -6 -6 ------- Run | Yrd Mat Mat Mat Fac Fac Ext Cet Active Infowar (turns) 2967 | 29 599 342 . . 1291 706 . Sensors 1997 | . . . . . 1291 706 . Seismic 970 | 29 599 342 . . . . . Robot Analysis Total 3 | . . 3 . . . . . Derelict Logs Recovered . | . . . . . . . . Drone Launches 4 | . . . . . 4 . . Drone Recoveries 3 | . . . . . 3 . . Exploration | -11 -10 -9 -8 -7 -6 -6 -6 ------------- Run | Yrd Mat Mat Mat Fac Fac Ext Cet Turns Passed 9285 | 126 1057 771 1505 2446 1296 1980 104 Spaces Moved 5645 | 65 601 491 942 1707 893 915 31 Core 5 | 5 . . . . . . . Treads . | . . . . . . . . Legs 5347 | 60 601 491 942 1547 760 915 31 Wheels 293 | . . . . 160 133 . . Hover . | . . . . . . . . Flight . | . . . . . . . . Fastest Speed 50 | 50 120 120 120 105 105 110 220 Average Speed 128 | 114 120 120 120 124 116 162 229 Slowest Speed 260 | 120 120 120 190 190 260 260 232 Overloaded Moves 414 | . . . . . 15 370 29 Propulsion Burnouts . | . . . . . . . . Robots Hopped . | . . . . . . . . Potential Cave-ins . | . . . . . . . . Cave-ins Triggered . | . . . . . . . . Exploration Rate (%) 43 | 4 80 31 77 33 23 81 17 Regions Visited 7 Branch Regions 2 Pre-discovered Areas . | . . . . . . . . Known Exits Taken . | . . . . . . . . Unknown Exits Taken 7 | 1 1 1 1 1 1 1 . Scrap Searched . | . . . . . . . . Spaces Dug 12 | . . . . 5 3 4 . Terrain Destroyed 26 | . . . 13 5 3 4 1 Melee 12 | . . . . 5 3 4 . Projectile 1 | . . . . . . . 1 AOE 13 | . . . 13 . . . . Terrain Rammed . | . . . . . . . . Walls Destroyed . | . . . . . . . . Machines Disabled . | . . . . . . . . Actions | -11 -10 -9 -8 -7 -6 -6 -6 --------- Run | Yrd Mat Mat Mat Fac Fac Ext Cet Total 7079 | 89 820 627 1197 1933 1096 1268 49 Wait 711 | 1 104 79 128 78 97 224 . Move 5638 | 64 600 490 941 1706 892 914 31 Hop . | . . . . . . . . Pick Up 68 | 2 9 8 10 17 15 7 . Fast Attach 28 | 7 1 1 4 5 2 8 . Attach 36 | . . 2 3 7 9 14 1 Detach 7 | . . . . . 4 3 . Swap 107 | . 21 13 26 25 15 7 . Drop 85 | . 13 10 23 18 18 3 . Fire 197 | 13 68 24 60 15 . . 17 Melee 175 | . . . . 62 42 71 . Ram . | . . . . . . . . Kick 10 | 2 4 . 2 . 2 . . Crush . | . . . . . . . . Escape Stasis 1 | . . . . . . 1 . Rewire 16 | . . . . . . 16 . Trap . | . . . . . . . . Miscellaneous . | . . . . . . . . Route ------- -11/Scrapyard -10/Materials (discovered 4 exits: *Mat / [*Min x2] / [*Sub]) -9/Materials (discovered 2 exits: *Mat / [*Min]) -8/Materials (discovered 2 exits: *Fac x2) -7/Factory (discovered 2 exits: *Fac / [*Sto]) -6/Factory -6/Extension (discovered 2 exits: [*Fac] / [*Cet]) -6/Cetus History --------- Turn | Location | Event 2 | -11/Scrapyard | Met Revision 17 3 | -11/Scrapyard | Discovered new exit (range 16) 127 | -11/Scrapyard | Entered Materials 216 | -10/Materials | Discovered new exit (range 10) 318 | -10/Materials | Build established: Mutant 455 | -10/Materials | Discovered new exit (range 9) 643 | -10/Materials | Discovered new exit (range 14) 729 | -10/Materials | Discovered new exit (range 8) 1027 | -10/Materials | Derelicts attacked the area 1184 | -10/Materials | Entered another Materials area 1184 | -9/Materials | Evolved 2 slots: Propulsion x2 1293 | -9/Materials | Build established: Scavenger-Mutant 1494 | -9/Materials | Discovered new exit (range 14) 1658 | -9/Materials | Discovered new exit (range 14) 1955 | -9/Materials | Entered another Materials area 1955 | -8/Materials | Evolved 2 slots: Utility x1, Weapon x1 2012 | -8/Materials | Repaired Spread Laser 2300 | -8/Materials | Build established: Scavenger-Tank 2771 | -8/Materials | Discovered new exit (range 16) 3210 | -8/Materials | Garrison activated, responded to threat 3425 | -8/Materials | Discovered new exit (range 16) 3460 | -8/Materials | Entered Factory 3460 | -7/Factory | Evolved 2 slots: Utility x2 3776 | -7/Factory | Build established: Gunner 4238 | -7/Factory | Build established: Gladiator 4472 | -7/Factory | Discovered new exit (range 10) 4618 | -7/Factory | Build established: Mutant 5276 | -7/Factory | Build established: Scavenger-Gladiator 5896 | -7/Factory | Discovered new exit (range 10) 5906 | -7/Factory | Entered another Factory area 5906 | -6/Factory | Evolved 2 slots: Utility x2 6356 | -6/Factory | Build established: Gladiator 7023 | -6/Factory | Lost 4 parts (2u2w) 7197 | -6/Factory | Discovered new exit (range 6) 7202 | -6/Factory | Entered Extension 7952 | -6/Extension | Lost 6 parts (1p1n4u) 8158 | -6/Extension | Core integrity fell below 50% 8253 | -6/Extension | Spotted B-75 Beast 8349 | -6/Extension | Destroyed B-75 Beast 8390 | -6/Extension | Spotted B-75 Beast 8395 | -6/Extension | Lost 3 parts (1p1n1w) 8438 | -6/Extension | Destroyed B-75 Beast 8530 | -6/Extension | Rescued a captive Derelict 8658 | -6/Extension | Build established: Scavenger-Gladiator 8696 | -6/Extension | Core integrity fell below 20% 8738 | -6/Extension | Lost 5 parts (3n1u1w) 8853 | -6/Extension | Rescued a captive Derelict 8855 | -6/Extension | Rescued a captive Derelict 8879 | -6/Extension | Rescued a captive Derelict 8879 | -6/Extension | Rescued a captive Derelict 8948 | -6/Extension | Discovered new exit (range 10) 8950 | -6/Extension | Discovered new exit (range 6) 9182 | -6/Extension | Entered Cetus 9182 | -6/Cetus | Accompanied by 4 allies 9211 | -6/Cetus | Spotted Cetus Guard 9212 | -6/Cetus | Spotted Cetus Guard 9215 | -6/Cetus | Spotted Cetus Guard 9217 | -6/Cetus | Spotted Cetus Guard 9220 | -6/Cetus | Allies destroyed Cetus Guard 9264 | -6/Cetus | Lost 4 allies 9286 | -6/Cetus | Destroyed by Cetus Guard with Advanced KE Penetrator Last Messages --------------- 09245_ Penetrated by Slug. 09247_ Slug penetrates Wall. 09251_ Penetrated by Slug. 09262_ Slug penetrates Wall. 09263_ System corrupted: Substantial component data lost. 09264_ Penetrated by Slug. 09264_ Imp. Deuterium Engine destroyed. 09266_ Slug penetrates Wall. 09268_ Penetrated by Slug. 09269_ Slug penetrates Wall. 09270_ Penetrated by Slug. 09272_ Core Analyzer destroyed. 09274_ Penetrated by Slug. 09274_ Mace destroyed. 09275_ Flexi-carbon Leg destroyed. 09275_ Slug penetrates Wall. 09276_ Penetrated by Slug. 09283_ System corrupted: Heat flow error (+255). 09285_ Penetrated by Slug. Map ----- +----------------------------------------------------+ | ?????????????????????????????????????????????????? | | ?????????????????????????????????????????????????? | | ?????????????????????????????????????????????????? | | ?????????????????????????????????????????????????? | | ?????????????????????????????????????????????????? | | ?????????????????????????????????????????????????? | | ??????????????????????? ???????????????????????? | | ??????????????????????# ???????????????????????? | | ??????????????????????# ???????????????????????? | | ??????????????????????# ???????????????????????? | | ??????????????????????# ???????????????????????? | | ??????????????????????# ???????????????????????? | | ??????????????????????# #??????????????????????? | | ??????????????????????# #??????????????????????? | | ??????????????????????# #??????????????????????? | | ??????????????????????# #??????????????????????? | | ??????????????????????# #??????????????????????? | | ??????????????????????# #??????????????????????? | | ??????????????????????# #??????????????????????? | | ??????????????????????# #??????????????????????? | | ??????????????????????# #??????????????????????? | | ??????????????????????# ####???????????????????? | | ??????????????????????# ; #???????????????????? | | ??????????????????????# ; #????????????????????? | | ???????????????????#### ;##????????????????????? | | ???????????????????# ; Y@##?????????????????????? | | ?#############"####;#;; Y ######?????????????????? | | ?# =%*! !!%% +???????????? | | ?# !*! *=% [[! +???????????? | | ?# =%= ! % *%[% +???????????? | | ?###############;######;;;##""#"% "##???????????? | | ???????????????#??????#####?###??####????????????? | | ?????????????????????????????????????????????????? | | ?????????????????????????????????????????????????? | | ?????????????????????????????????????????????????? | | ?????????????????????????????????????????????????? | | ?????????????????????????????????????????????????? | | ?????????????????????????????????????????????????? | | ?????????????????????????????????????????????????? | | ?????????????????????????????????????????????????? | | ?????????????????????????????????????????????????? | | ?????????????????????????????????????????????????? | | ?????????????????????????????????????????????????? | | ?????????????????????????????????????????????????? | | ?????????????????????????????????????????????????? | | ?????????????????????????????????????????????????? | | ?????????????????????????????????????????????????? | | ?????????????????????????????????????????????????? | | ?????????????????????????????????????????????????? | | ?????????????????????????????????????????????????? | +----------------------------------------------------+ Best States ------------- Heat Dissipation 61 Energy Generation 18 Energy Capacity 310 Matter Stores 300 Matter Capacity 300 Sight Range 16 Robot Scan Range 16 Terrain Scan Density 10 Additional Mass Support 9 Armor Coverage 225 Core Shielding 20 Melee Speed Boost 20 Evasion (%) 65 Targeting Accuracy 8 Melee Accuracy 8 Target Analysis 5 Core Analysis 9 Armor Integrity Analysis 30 Offensive Hacking 10 Item Schematics ----------------- Hvy. Particle Gun | -8/Materials | Scanalyzed Robot Schematics ------------------ None Fabricated ------------ Nothing Repaired ---------- Spread Laser | 67% | -8/Materials Alien Tech Used ----------------- None Achievements -------------- None Challenges ------------ None Game ------ Seed FrostNodeRipteeth Manual? 0 Play Time 01:04:10 Cumulative 108.1 hours Start 2025.09.28 @ 16:04:14 End 2025.09.28 @ 17:08:43 Sessions 1 Manual Loads 0 Difficulty Rogue Special Mode None Game No. 210 Rogue 208 Adventurer 0 Explorer 2 Win Type - Total 1 Types 1/0/0/0/0/0/0/0/0/0 Lore% 34 Gallery% 49 Achievement% 43 Wizard Run 0 Options --------- Layout 2 ASCII 0 Keyboard 1 Movement Arrows Keybinds 0 Fullscreen 1 Font 28/SmallcapsGlow Map View 50x49 Zoom Use 0% Tactical HUD 1 Map Filters NONE Filters NONE Steam 1 RUN: a32fb901-239b-436b-afb5-3d2de40ae00e